bitfinex-derivatives/quotes_SOLF0:USTF0_20250514
["timestamp","ask_amount","ask_price","bid_price","bid_amount"]
[1747262272591,5.6799,176.02,175.99,5.6806]
[1747262272793,5.6795,176.03,175.99,5.6806]
[1747262273695,5.6798,176.02,175.98,5.6809]
[1747262274495,5.6798,176.02,175.97,57.88]
[1747262274496,57.42,176.04,175.91,8.27950512]
[1747262274695,6.45886146,176.02,175.93,114.8]
[1747262275096,5.6809,175.99,175.95,5.6818]
[1747262275395,6.45886146,176.02,175.95,5.6818]
[1747262276605,5.6811,175.98,175.95,5.6818]
[1747262277908,5.6811,175.98,175.96,57.48]
[1747262278103,5.6811,175.98,175.97,57.48]
[1747262280205,6.45886146,176.02,175.97,57.48]
[1747262281709,63.87806531,176.04,175.97,57.48]
[1747262283703,1.7674,176.05,175.98,5.6809]
[1747262283908,57.2,176.04,175.98,5.6809]
[1747262284600,1.7674,176.05,175.99,5.6806]
[1747262284796,5.6796,176.03,175.99,5.6806]
[1747262285306,1.7674,176.05,175.98,5.6809]
[1747262286613,5.6798,176.02,175.98,5.6809]
[1747262287708,5.6798,176.02,175.99,5.6806]
[1747262287911,5.6795,176.03,175.99,5.6806]
[1747262288812,5.6797,176.02,175.99,5.6806]
[1747262289211,1.7674,176.05,175.99,5.6806]
[1747262289912,5.6795,176.03,175.99,5.6806]
[1747262291012,5.6797,176.02,175.99,5.6806]
[1747262291213,5.6797,176.02,175.98,5.6809]
[1747262293310,5.68,176.01,175.98,5.6809]
[1747262293710,4.13215804,176.02,175.98,5.6809]
[1747262293916,9.81205804,176.02,175.98,5.6809]
[1747262294713,5.6799,176.02,175.98,5.6809]
[1747262295309,4.13198588,176.03,175.97,63.1613]
[1747262295816,5.6805,176.0,175.97,63.1613]
[1747262298214,9.81218588,176.01,175.97,63.1613]
[1747262298514,4.13198588,176.01,175.97,63.1613]
[1747262299112,9.81148588,176.03,175.99,5.6805]
[1747262299613,9.81148588,176.03,176.0,5.6803]
[1747262299811,9.81148588,176.03,176.01,57.08]
[1747262300007,1.7674,176.05,176.01,57.08]
[1747262300212,1.7674,176.05,176.03,5.6793]
[1747262300405,4.13198588,176.06,176.03,5.6793]
[1747262300609,9.81058588,176.06,176.03,5.6793]
[1747262301015,9.81058588,176.06,176.02,5.6796]
[1747262301221,5.6788,176.05,176.02,5.6796]
[1747262303519,9.80933605,176.06,176.03,5.6793]
[1747262304721,5.6788,176.05,176.02,5.6796]
[1747262307720,9.80933605,176.06,176.02,5.6796]
[1747262307920,57.08,176.08,176.01,57.08]
[1747262308124,4.13083605,176.07,176.01,57.08]
[1747262308624,4.13083605,176.07,176.04,5.6788]
[1747262308815,4.13083605,176.07,176.05,57.08]
[1747262310420,9.80893605,176.07,176.05,57.08]
[1747262311520,4.13083605,176.07,176.05,62.7585]
[1747262313321,5.6775,176.09,176.06,5.6784]
[1747262313520,4.13083605,176.09,176.05,57.08]
[1747262314119,4.13083605,176.09,176.06,5.6782]
[1747262314425,4.13083605,176.09,176.05,57.08]
[1747262314725,4.13083605,176.09,176.06,5.6781]
[1747262315521,9.80833605,176.09,176.06,5.6781]
[1747262316225,4.13083605,176.09,176.06,5.6781]
[1747262317224,9.80843605,176.09,176.06,5.6781]
[1747262317617,5.6778,176.08,176.05,62.7586]
[1747262317816,4.13083605,176.07,176.05,57.08]
[1747262318626,5.6784,176.06,176.05,57.08]
[1747262323627,4.13083605,176.07,176.05,57.08]
[1747262325235,9.80913605,176.07,176.05,57.08]
[1747262326334,5.6783,176.07,176.05,57.08]
[1747262328430,5.6779,176.08,176.05,62.7587]
[1747262328631,4.13083605,176.09,176.05,57.08]
[1747262329233,9.80843605,176.09,176.06,5.6783]
[1747262330030,5.6776,176.09,176.07,5.6781]
[1747262330225,5.6776,176.09,176.05,57.08]
[1747262331637,5.6776,176.09,176.06,5.6782]
[1747262337341,5.6778,176.08,176.06,5.6782]
[1747262337742,5.6778,176.08,176.05,62.7587]
[1747262342949,5.6781,176.07,176.05,62.7587]
[1747262343252,4.13083605,176.11,176.05,57.08]
[1747262343446,4.12930983,176.09,176.05,57.08]
[1747262344050,5.6784,176.06,176.05,57.08]
[1747262348654,4.1295593,176.07,176.03,56.8]
[1747262348958,4.1295593,176.05,176.03,56.8]
[1747262349258,5.6791,176.04,176.03,56.8]
[1747262351964,1.921,176.08,176.03,56.8]
[1747262352158,4.1295593,176.1,176.03,56.8]
[1747262352563,5.6778,176.08,176.03,56.8]
[1747262352865,4.1295593,176.1,176.03,56.8]
[1747262353163,4.1295593,176.1,176.06,5.6782]
[1747262353366,4.1295593,176.1,176.07,56.8]
[1747262353965,5.6774,176.09,176.07,56.8]
[1747262358667,5.6778,176.08,176.07,56.8]
[1747262359371,8.40653876,176.13,176.07,56.8]
[1747262359665,63.23193876,176.13,176.07,56.8]
[1747262360166,6.45193876,176.13,176.08,5.6776]
[1747262360370,63.23193876,176.13,176.08,5.6776]
[1747262361277,10.45193876,176.16,176.07,56.8]
[1747262361471,5.676,176.14,176.07,56.8]
[1747262361668,56.78,176.15,176.07,56.8]
[1747262361964,1.9406,176.18,176.07,56.8]
[1747262362275,56.78,176.17,176.11,5.6766]
[1747262362568,56.78,176.17,176.12,56.78]
[1747262363167,5.6759,176.14,176.12,56.78]
[1747262363467,56.78,176.17,176.12,62.4563]
[1747262363871,5.6756,176.15,176.13,5.6761]
[1747262365067,5.6756,176.15,176.12,62.4564]
[1747262365268,5.6759,176.14,176.12,56.78]
[1747262368176,56.78,176.17,176.12,62.4564]
[1747262369273,5.6755,176.15,176.12,62.4564]
[1747262369479,56.78,176.17,176.13,5.6761]
[1747262369973,5.6754,176.16,176.13,5.6761]
[1747262370777,5.6756,176.15,176.12,62.4563]
[1747262371279,5.6759,176.14,176.12,56.78]
[1747262373279,5.6759,176.14,176.12,62.4564]
[1747262374878,5.6756,176.15,176.12,62.4564]
[1747262375179,1.9406,176.18,176.13,5.6761]
[1747262375374,63.21193876,176.19,176.13,5.6761]
[1747262375680,5.6751,176.17,176.12,56.78]
[1747262376378,5.6751,176.17,176.15,5.6755]
[1747262376679,5.6751,176.17,176.16,56.76]
[1747262384486,5.6762,176.13,176.1,1.8464]
[1747262384687,5.6762,176.13,176.11,56.74]
[1747262385388,5.6762,176.13,176.11,62.4167]
[1747262385791,5.6759,176.14,176.11,62.4167]
[1747262386391,6.45193876,176.19,176.11,62.4167]
[1747262387194,5.6762,176.13,176.11,62.4167]
[1747262387689,5.6757,176.15,176.12,5.6764]
[1747262387896,6.45193876,176.19,176.12,5.6764]
[1747262389593,5.6754,176.16,176.13,5.6761]
[1747262390196,5.6749,176.17,176.14,5.6756]
[1747262390398,56.74,176.2,176.15,56.74]
[1747262390792,5.6743,176.19,176.16,5.675]
[1747262391296,5.6748,176.18,176.15,62.4154]
[1747262392091,5.6748,176.18,176.16,5.6751]
[1747262394297,5.6748,176.18,176.15,62.4154]
[1747262394599,5.6749,176.17,176.15,56.74]
[1747262396800,4.12531816,176.2,176.15,62.4153]
[1747262397304,5.6747,176.18,176.15,62.4153]
[1747262399100,5.6743,176.19,176.16,5.675]
[1747262400301,5.6746,176.18,176.15,62.4154]
[1747262401504,5.6746,176.18,176.16,5.6752]
[1747262402407,5.6749,176.17,176.15,62.4154]
[1747262402707,4.12531816,176.2,176.15,62.4154]
[1747262403108,5.6747,176.18,176.15,62.4154]
[1747262405407,5.6743,176.19,176.16,5.6752]
[1747262405602,4.12531816,176.21,176.15,56.74]
[1747262405808,60.86531816,176.21,176.15,56.74]
[1747262406007,5.6747,176.18,176.15,62.4153]
[1747262407802,5.6752,176.16,176.15,56.74]
[1747262408506,5.6766,176.12,176.1,1.8464]
[1747262408809,5.6766,176.12,176.11,56.74]
[1747262410008,5.6763,176.13,176.11,56.74]
[1747262410209,4.12602198,176.16,176.11,56.74]
[1747262410609,5.6761,176.14,176.11,56.74]
[1747262410906,5.6761,176.14,176.11,62.4168]
[1747262413917,5.6753,176.16,176.13,5.6761]
[1747262414213,56.74,176.18,176.13,5.6761]
[1747262414414,5.6756,176.15,176.12,5.6763]
[1747262415513,5.6756,176.15,176.13,5.6761]
[1747262416616,5.6756,176.15,176.12,5.6763]
[1747262416816,5.6759,176.14,176.12,5.6763]
[1747262417415,5.6765,176.12,176.11,56.74]
[1747262423717,5.6771,176.1,176.09,490.52]
[1747262431622,5.6771,176.1,176.08,57.1]
[1747262432822,57.14,176.14,176.08,57.1]
[1747262432823,5.6766,176.12,176.08,57.1]
[1747262433124,56.98,176.14,176.08,57.1]
[1747262433725,5.6773,176.1,176.08,57.1]
[1747262433925,56.98,176.14,176.08,57.1]
[1747262435228,4.12821881,176.13,176.08,57.1]
[1747262435527,4.12822635,176.13,176.08,57.1]
[1747262435729,5.6774,176.09,176.08,57.1]
[1747262443131,5.6781,176.07,176.06,1.9174]
[1747262443333,5.6781,176.07,176.06,59.0174]
[1747262444837,5.6779,176.08,176.06,59.0174]
[1747262445333,5.6781,176.07,176.06,57.1]
[1747262445633,4.12811279,176.13,176.06,57.1]
[1747262446637,5.6779,176.08,176.06,57.1]
[1747262449134,56.98,176.14,176.07,5.6781]
[1747262449332,56.98,176.14,176.06,58.9259]
[1747262449838,60.94811279,176.15,176.08,5.6776]
[1747262450242,5.677,176.11,176.08,5.6776]
[1747262451132,5.6772,176.1,176.08,5.6776]
[1747262452642,5.677,176.11,176.08,5.6776]
[1747262453643,5.677,176.11,176.09,5.6774]
[1747262453836,5.677,176.11,176.1,56.8]
[1747262454039,4.12811279,176.16,176.1,56.8]
[1747262454242,6.00181279,176.17,176.11,5.6767]
[1747262454445,5.676,176.14,176.11,5.6767]
[1747262455243,5.6763,176.13,176.11,5.6767]
[1747262476759,5.676,176.14,176.11,5.6767]
[1747262477358,5.676,176.14,176.12,5.6765]
[1747262477562,5.676,176.14,176.1,56.8]
[1747262478065,5.676,176.14,176.11,5.6766]
[1747262479864,5.6762,176.13,176.11,5.6766]
[1747262480164,4.12605126,176.15,176.11,5.6766]
[1747262480458,5.676,176.14,176.11,5.6766]
[1747262481867,5.676,176.14,176.12,5.6765]
[1747262482267,5.676,176.14,176.1,56.8]
[1747262482567,5.676,176.14,176.11,5.6765]
[1747262490369,5.6762,176.13,176.11,5.6765]
[1747262492270,5.6762,176.13,176.12,56.74]
[1747262492971,9.80185126,176.15,176.12,56.74]
[1747262493573,9.80185126,176.15,176.12,62.4165]
[1747262497077,9.80185126,176.15,176.13,56.74]
[1747262497478,5.99975126,176.17,176.13,62.4159]
[1747262498381,5.6754,176.16,176.14,5.6757]
[1747262499478,5.99975126,176.17,176.13,56.74]
[1747262500378,11.67485126,176.17,176.14,5.6756]
[1747262502383,5.6752,176.16,176.14,5.6756]
[1747262503584,11.67475126,176.17,176.14,5.6756]
[1747262503785,5.99975126,176.17,176.14,5.6756]
[1747262505086,4.12605126,176.17,176.14,5.6756]
[1747262505382,5.675,176.17,176.15,5.6754]
[1747262505585,5.675,176.17,176.13,56.74]
[1747262506189,5.675,176.17,176.14,5.6757]
[1747262506486,5.675,176.17,176.13,56.74]
[1747262507087,5.675,176.17,176.14,5.6755]
[1747262508486,5.675,176.17,176.15,5.6754]
[1747262508793,5.6746,176.18,176.13,56.74]
[1747262509591,5.6746,176.18,176.15,5.6753]
[1747262510187,5.6746,176.18,176.16,5.6751]
[1747262510395,4.12605126,176.21,176.17,56.74]
[1747262510694,4.12605126,176.21,176.18,56.74]
[1747262511190,5.6739,176.2,176.18,56.74]
[1747262511394,5.6739,176.2,176.18,62.4144]
[1747262511692,5.6738,176.21,176.18,56.74]
[1747262511993,5.6738,176.21,176.18,62.4144]
[1747262516297,84.55447742,176.22,176.19,5.674]
[1747262516496,4.12605126,176.24,176.18,56.74]
[1747262516998,5.6732,176.23,176.19,5.674]
[1747262517396,5.6732,176.23,176.18,56.74]
[1747262517598,5.6732,176.23,176.2,5.6739]
[1747262518399,5.6733,176.22,176.2,5.6739]
[1747262518799,4.12605126,176.24,176.2,5.6739]
[1747262520694,5.6733,176.22,176.2,5.6739]
[1747262521305,5.6736,176.21,176.19,5.6741]
[1747262521599,5.6736,176.21,176.18,56.74]
[1747262522397,5.6736,176.21,176.18,62.4144]
[1747262524100,5.674,176.2,176.18,62.4144]
[1747262527005,5.6737,176.21,176.18,62.4144]
[1747262529707,5.674,176.2,176.18,56.74]
[1747262533712,9.79915126,176.23,176.18,56.74]
[1747262534613,9.79915126,176.23,176.19,5.6742]
[1747262535023,5.6737,176.21,176.18,56.74]
[1747262535216,9.79975126,176.21,176.18,56.74]
[1747262535414,4.12605126,176.21,176.18,56.74]
[1747262536615,4.12605126,176.21,176.18,62.4143]
[1747262537817,60.80605126,176.22,176.19,5.6742]
[1747262543820,4.12605126,176.22,176.19,5.6742]
[1747262544316,62.3527,176.24,176.19,5.6742]
[1747262544519,4.12605126,176.23,176.19,5.6742]
[1747262544711,4.1230867,176.23,176.19,5.6742]
[1747262546319,4.1230867,176.26,176.19,4.1230867]
[1747262546722,4.1230867,176.26,176.23,5.6727]
[1747262546923,4.1230867,176.26,176.23,62.3327]
[1747262547123,15.33962772,176.27,176.23,62.3327]
[1747262548827,11.63102772,176.27,176.23,62.3327]
[1747262552629,4.12152772,176.27,176.23,56.66]
[1747262552824,66.45272772,176.29,176.23,56.66]
[1747262553331,4.12152772,176.29,176.25,5.672]
[1747262554032,9.79262772,176.29,176.25,5.672]
[1747262554231,9.79262772,176.29,176.24,5.6725]
[1747262555126,5.6715,176.28,176.24,5.6725]
[1747262555733,5.6715,176.28,176.23,62.3328]
[1747262556032,5.6717,176.27,176.23,62.3328]
[1747262556634,5.672,176.26,176.23,62.3328]
[1747262558035,5.6723,176.25,176.23,62.3328]
[1747262559838,5.6721,176.26,176.24,5.6726]
[1747262565944,5.6717,176.27,176.24,5.6726]
[1747262568345,5.6717,176.27,176.25,5.6723]
[1747262570347,5.6717,176.27,176.24,5.6725]
[1747262571442,5.672,176.26,176.24,5.6725]
[1747262585556,5.672,176.26,176.23,62.3328]
[1747262586260,5.672,176.26,176.24,5.6724]
[1747262588059,5.6717,176.27,176.25,5.6723]
[1747262592564,5.672,176.26,176.24,5.6725]
[1747262592966,5.672,176.26,176.23,56.66]
[1747262593165,5.672,176.26,176.23,62.3326]
[1747262593665,5.672,176.26,176.24,5.6725]
[1747262596065,5.672,176.26,176.25,56.62]
[1747262611179,5.6726,176.25,176.22,62.253]
[1747262611378,4.1208726,176.26,176.22,62.253]
[1747262611570,4.12198679,176.26,176.22,56.58]
[1747262611979,4.12198928,176.26,176.22,56.58]
[1747262612980,5.6724,176.25,176.22,56.58]
[1747262616980,5.6724,176.25,176.22,62.2532]
[1747262617482,4.12198928,176.27,176.22,56.58]
[1747262618381,9.79388928,176.27,176.24,5.6726]
[1747262618979,5.672,176.26,176.23,5.6728]
[1747262623183,5.6723,176.25,176.23,5.6728]
[1747262623379,5.6723,176.25,176.22,62.2532]
[1747262628089,5.6728,176.24,176.22,56.58]
[1747262629086,5.6729,176.23,176.22,56.58]
[1747262631689,9.79488928,176.23,176.22,56.58]
[1747262636086,5.6729,176.23,176.22,56.58]
[1747262655308,5.6743,176.19,176.18,56.56]
[1747262659012,5.6752,176.16,176.15,546.86]
[1747262662107,5.675,176.17,176.15,546.86]
[1747262664113,5.675,176.17,176.15,56.56]
[1747262668317,5.6752,176.16,176.15,56.56]
[1747262676508,4.12576347,176.16,176.12,56.54]
[1747262677020,5.6757,176.15,176.12,56.54]
[1747262677619,5.6759,176.14,176.12,56.54]
[1747262682724,5.6759,176.14,176.12,62.2165]
[1747262687418,5.6757,176.15,176.12,62.2165]
[1747262688123,5.6757,176.15,176.13,5.6761]
[1747262690319,5.6757,176.15,176.12,56.54]
[1747262690320,9.80106347,176.16,176.14,5.6758]
[1747262690525,4.12576347,176.18,176.14,5.6758]
[1747262692025,5.6754,176.16,176.13,5.6761]
[1747262692229,4.12576347,176.18,176.13,5.6761]
[1747262692527,5.6754,176.16,176.13,5.6761]
[1747262695832,5.6755,176.15,176.13,5.6761]
[1747262696731,5.6753,176.16,176.13,5.6761]
[1747262697533,5.6753,176.16,176.14,5.6758]
[1747262699936,5.6753,176.16,176.12,62.2164]
[1747262700436,5.6756,176.15,176.12,62.2164]
[1747262700945,5.676,176.14,176.12,56.54]
[1747262701536,5.6762,176.13,176.12,56.54]
[1747262702441,5.6759,176.14,176.12,56.54]
[1747262702642,5.6759,176.14,176.12,62.2163]
[1747262704744,56.52,176.19,176.12,56.54]
[1747262704944,56.52,176.19,176.12,60.66576347]
[1747262705346,56.52,176.19,176.12,62.48156347]
[1747262705746,5.6752,176.17,176.14,5.6756]
[1747262707646,5.6748,176.18,176.12,62.48156347]
[1747262707846,5.6748,176.18,176.13,1.9189]
[1747262708246,5.6748,176.18,176.16,5.6752]
[1747262708447,5.6748,176.18,176.16,62.1752]
[1747262708647,5.6748,176.18,176.16,56.5]
[1747262709242,4.12576347,176.21,176.16,56.5]
[1747262709744,56.5,176.22,176.16,56.5]
[1747262710047,5.674,176.2,176.18,5.6745]
[1747262710247,56.5,176.22,176.18,5.6745]
[1747262710647,5.6738,176.21,176.18,5.6745]
[1747262711141,5.6738,176.21,176.19,5.6741]
[1747262712148,5.6734,176.22,176.19,5.6741]
[1747262712446,5.6734,176.22,176.2,5.6739]
[1747262712748,5.6731,176.23,176.2,62.1739]
[1747262713247,5.6733,176.22,176.2,62.1739]
[1747262713643,60.60290493,176.24,176.2,56.5]
[1747262713841,5.6736,176.21,176.2,56.5]
[1747262718552,5.6741,176.2,176.17,56.5]
[1747262718752,9.79700493,176.2,176.17,56.5]
[1747262720253,9.79822533,176.2,176.17,56.5]
[1747262720450,9.79822533,176.2,176.17,62.1748]
[1747262720952,5.6742,176.19,176.17,62.1748]
[1747262726054,9.79812533,176.2,176.17,62.1748]
[1747262726455,4.12412533,176.2,176.17,56.5]
[1747262726954,5.6745,176.19,176.17,56.5]
[1747262729858,5.674,176.2,176.17,56.5]
[1747262730560,5.674,176.2,176.18,5.6745]
[1747262733163,5.6742,176.19,176.17,56.5]
[1747262733864,5.6742,176.19,176.17,62.1748]
[1747262738670,5.6745,176.18,176.17,56.5]
[1747262738966,9.79862533,176.18,176.17,56.5]
[1747262739665,9.79862533,176.18,176.14,56.44]
[1747262739666,5.6757,176.15,176.14,56.44]
[1747262740962,5.6752,176.16,176.14,56.44]
[1747262747173,4.12412533,176.16,176.11,56.46]
[1747262747371,4.12412533,176.14,176.11,56.46]
[1747262747870,5.6764,176.13,176.11,56.46]
[1747262748261,5.6765,176.12,176.11,56.46]
[1747262760786,9.80062533,176.12,176.11,56.46]
[1747262760982,5.6775,176.09,176.08,56.42]
[1747262761383,56.42,176.14,176.08,56.42]
[1747262761583,5.677,176.11,176.08,62.0977]
[1747262762490,4.12412533,176.13,176.08,56.42]
[1747262762987,5.6773,176.1,176.08,56.42]
[1747262763991,5.6774,176.09,176.08,56.42]
[1747262764784,9.80152533,176.09,176.08,56.42]
[1747262764981,5.6783,176.07,176.04,5.6789]
[1747262765291,5.6783,176.07,176.05,56.42]
[1747262765690,5.6778,176.08,176.05,56.42]
[1747262765887,5.6778,176.08,176.05,62.0987]
[1747262766090,5.6778,176.08,176.05,56.42]
[1747262766792,5.6781,176.07,176.05,56.42]
[1747262769396,5.6784,176.06,176.05,56.42]
[1747262774603,5.6798,176.02,175.98,494.76412533]
[1747262774803,5.6798,176.02,175.99,62.1205]
[1747262775303,4.12412533,176.02,175.96,62.1213]
[1747262775507,60.56412533,176.02,175.96,56.44]
[1747262775701,5.6806,176.0,175.97,5.6811]
[1747262776305,5.6807,175.99,175.97,5.6811]
[1747262776500,5.6807,175.99,175.96,62.1214]
[1747262777799,4.12412533,176.0,175.96,56.44]
[1747262778004,4.12412533,175.98,175.96,56.44]
[1747262778800,4.12412533,175.98,175.87,4.12412533]
[1747262779005,4.12412533,175.96,175.92,56.44]
[1747262779408,56.44,175.98,175.92,62.1227]
[1747262779705,56.44,175.98,175.92,56.44]
[1747262779905,5.6814,175.97,175.92,56.44]
[1747262780407,5.6814,175.97,175.94,5.682]
[1747262782409,5.6817,175.96,175.94,5.682]
[1747262783103,5.6817,175.96,175.93,5.6825]
[1747262783703,5.682,175.95,175.92,56.44]
[1747262783907,5.682,175.95,175.92,62.1228]
[1747262784208,62.89949352,175.99,175.92,56.44]
[1747262784397,5.6826,175.93,175.92,56.44]
[1747262785707,56.46,175.95,175.88,56.46]
[1747262786206,5.6839,175.89,175.88,56.46]
[1747262788407,5.6839,175.89,175.85,56.46]
[1747262788604,56.46,175.9,175.85,56.46]
[1747262789207,5.6845,175.88,175.85,56.46]
[1747262789406,56.46,175.9,175.85,56.46]
[1747262790008,56.46,175.93,175.85,56.46]
[1747262790710,5.6838,175.9,175.87,5.6844]
[1747262791608,62.1427,175.93,175.9,5.6833]
[1747262791803,56.46,175.96,175.9,56.46]
[1747262792209,5.6826,175.94,175.91,5.683]
[1747262793211,5.6826,175.94,175.9,62.1435]
[1747262793512,56.46,175.96,175.9,56.46]
[1747262794111,5.6831,175.92,175.9,56.46]
[1747262800111,5.6831,175.92,175.9,62.1435]
[1747262800313,5.6827,175.93,175.9,56.46]
[1747262800809,5.6825,175.94,175.9,56.46]
[1747262801014,56.48,175.97,175.9,56.46]
[1747262801516,5.6822,175.95,175.92,5.6828]
[1747262805019,5.6823,175.94,175.92,5.6828]
[1747262805517,5.6821,175.95,175.92,5.6828]
[1747262806317,5.6821,175.95,175.93,5.6825]
[1747262808020,5.6818,175.96,175.93,5.6825]
[1747262809321,5.682,175.95,175.93,5.6825]
[1747262810421,5.6825,175.94,175.9,56.46]
[1747262810723,56.48,175.97,175.9,56.46]
[1747262811325,56.48,175.97,175.91,5.6832]
[1747262811525,56.48,175.97,175.9,56.46]
[1747262811822,5.6817,175.96,175.94,5.6822]
[1747262812024,56.48,175.97,175.9,56.46]
[1747262812627,62.1613,175.97,175.9,56.46]
[1747262812821,5.6813,175.97,175.9,56.46]
[1747262814127,5.6813,175.97,175.94,5.682]
[1747262814725,5.6813,175.97,175.95,5.6819]
[1747262816929,5.6813,175.97,175.94,5.682]
[1747262818032,5.6816,175.96,175.94,5.682]
[1747262819927,5.6816,175.96,175.93,5.6825]
[1747262820530,5.6822,175.95,175.93,5.6825]
[1747262820728,56.48,175.99,175.9,56.46]
[1747262821235,5.6825,175.94,175.91,5.683]
[1747262822830,5.6826,175.93,175.91,5.683]
[1747262823229,56.48,175.99,175.91,5.683]
[1747262823735,5.6825,175.94,175.91,5.683]
[1747262824931,5.6825,175.94,175.92,5.6828]
[1747262825726,5.6825,175.94,175.9,56.46]
[1747262825935,5.6825,175.94,175.91,5.6831]
[1747262827732,5.6825,175.94,175.92,5.6829]
[1747262828930,5.6825,175.94,175.91,5.6832]
[1747262829833,56.48,175.99,175.91,5.6832]
[1747262830932,5.6832,175.92,175.9,56.46]
[1747262831134,56.46,175.95,175.9,56.46]
[1747262831836,62.92542963,175.95,175.87,56.46]
[1747262832036,1.8205,175.94,175.87,56.46]
[1747262832332,6.46542963,175.92,175.84,56.46]
[1747262832536,56.46,175.91,175.84,56.46]
[1747262833237,112.92,175.91,175.84,56.46]
[1747262833637,5.6852,175.85,175.84,56.46]
[1747262834531,5.6852,175.85,175.81,5.6864]
[1747262834532,56.46,175.87,175.81,56.46]
[1747262834929,62.92542963,175.86,175.75,56.46]
[1747262835132,64.88442963,175.86,175.75,56.46]
[1747262835337,64.88442963,175.86,175.77,5.6878]
[1747262835534,64.88442963,175.86,175.75,56.46]
[1747262836034,64.88442963,175.86,175.79,5.6869]
[1747262836246,5.6862,175.82,175.79,5.6869]
[1747262837138,5.686,175.83,175.8,5.6868]
[1747262837738,5.6862,175.82,175.79,62.1671]
[1747262838440,5.6867,175.81,175.79,56.48]
[1747262838637,56.46,175.85,175.79,56.48]
[1747262839445,5.6855,175.84,175.81,5.6864]
[1747262839639,56.46,175.85,175.79,56.48]
[1747262840040,56.46,175.85,175.79,62.1669]
[1747262840242,56.46,175.85,175.79,56.48]
[1747262840542,5.6856,175.84,175.81,5.6862]
[1747262841044,56.46,175.85,175.79,56.48]
[1747262841238,62.1455,175.85,175.81,5.6863]
[1747262841443,56.46,175.85,175.81,5.6863]
[1747262842138,5.6857,175.84,175.81,5.6863]
[1747262842345,56.46,175.85,175.79,56.48]
[1747262844051,5.6862,175.82,175.79,62.1669]
[1747262844236,5.6862,175.82,175.79,56.48]
[1747262844441,56.46,175.85,175.79,56.48]
[1747262845146,56.46,175.85,175.79,62.1669]
[1747262845947,56.46,175.85,175.8,5.6868]
[1747262846347,5.6857,175.84,175.79,56.48]
[1747262846547,56.46,175.85,175.79,56.48]
[1747262846849,5.6861,175.83,175.8,5.6867]
[1747262847049,56.46,175.85,175.8,5.6867]
[1747262847249,56.46,175.85,175.79,56.48]
[1747262847549,5.6864,175.82,175.79,62.167]
[1747262847752,56.46,175.85,175.79,56.48]
[1747262848749,5.6868,175.8,175.79,56.48]
[1747262849743,5.6868,175.8,175.75,5.6883]
[1747262849948,6.47341493,175.84,175.76,56.56]
[1747262850451,5.6878,175.77,175.76,56.56]
[1747262851151,5.6876,175.78,175.76,56.56]
[1747262851350,56.58,175.81,175.76,56.56]
[1747262852252,56.58,175.81,175.76,62.248]
[1747262852454,5.6875,175.78,175.76,56.56]
[1747262853352,5.6878,175.77,175.76,56.56]
[1747262854256,5.68,175.77,175.61,0.99023988]
[1747262854452,12.03887562,175.76,175.55,8.51478172]
[1747262854656,6.47557562,175.71,175.56,68.79907562]